fUST/lending_fUST_20250627
["ID","MTS","AMOUNT","RATE_DAILY","PERIOD"]
[368148027,1751038266169,-2393.0,0.00022961,2]
[368148028,1751038266179,-2200.0,0.00022971,2]
[368148029,1751038266188,-499.99999901,0.0002298,2]
[368148030,1751038266198,-151.0,0.00023,7]
[368148031,1751038266207,-230.26210603,0.00023,3]
[368148032,1751038266216,-50000.0,0.00023,15]
[368148033,1751038266225,-294.89,0.00023,7]
[368148034,1751038266235,-160.0,0.00023,3]
[368148035,1751038266315,-2256.39,0.00023,2]
[368148036,1751038266326,-160.0,0.00023,3]
[368148037,1751038266335,-836.98798914,0.00023,3]
[368148038,1751038266345,-151.0,0.00023013,7]
[368148039,1751038266354,-196.311275,0.00023013,7]
[368148040,1751038266364,-196.311275,0.00023013,7]
[368148041,1751038266374,-460.0,0.00023013,2]
[368148042,1751038266383,-487.3,0.00023013,2]
[368148043,1751038266394,-627.13,0.00023013,2]
[368148044,1751038266404,-460.0,0.00023013,2]
[368148045,1751038266417,-493.07,0.00023013,2]
[368148046,1751038266426,-1636.33,0.00023013,2]
[368148047,1751038266438,-977.32,0.00023013,2]
[368148048,1751038266447,-5210.38,0.00023013,2]
[368148049,1751038266457,-524.72,0.00023013,2]
[368148050,1751038266467,-1615.3,0.00023013,2]
[368148051,1751038266477,-460.0,0.00023013,2]
[368148052,1751038266487,-821.81,0.00023013,2]
[368148053,1751038266497,-1051.43,0.00023013,2]
[368148054,1751038266507,-493.34,0.00023013,2]
[368148055,1751038266516,-5570.99,0.00023013,2]
[368148056,1751038266526,-1168.98,0.00023013,2]
[368148057,1751038266536,-5551.03,0.00023013,2]
[368148058,1751038266546,-1027.11,0.00023013,2]
[368148059,1751038266556,-835.24,0.00023013,2]
[368148060,1751038266566,-460.0,0.00023013,2]
[368148061,1751038266576,-729.15,0.00023013,2]
[368148062,1751038266586,-460.0,0.00023013,2]
[368148063,1751038266596,-1628.16,0.00023013,2]
[368148064,1751038266606,-460.0,0.00023013,2]
[368148065,1751038266617,-648.14,0.00023013,2]
[368148066,1751038266629,-551.64,0.00023013,2]
[368148067,1751038266638,-3080.1,0.00023013,2]
[368148068,1751038266648,-3962.82,0.00023013,2]
[368148069,1751038266659,-482.95,0.00023013,2]
[368148070,1751038266668,-460.0,0.00023013,2]
[368148071,1751038266679,-460.0,0.00023013,2]
[368148072,1751038266689,-2701.86,0.00023013,2]
[368148073,1751038266699,-460.0,0.00023013,2]
[368148074,1751038266708,-960.06,0.00023013,2]
[368148075,1751038266718,-460.0,0.00023013,2]
[368148076,1751038266728,-598.88,0.00023013,2]
[368148077,1751038266738,-460.0,0.00023013,2]
[368148078,1751038266748,-516.39,0.00023013,2]
[368148079,1751038266758,-1018.47,0.00023013,2]
[368148080,1751038266768,-1550.47,0.00023013,2]
[368148081,1751038266778,-460.0,0.00023013,2]
[368148082,1751038266788,-1531.61,0.00023013,2]
[368148083,1751038266798,-460.0,0.00023013,2]
[368148084,1751038266809,-1149.78,0.00023013,2]
[368148085,1751038266819,-1081.48,0.00023013,2]
[368148086,1751038266829,-584.17,0.00023013,2]
[368148087,1751038266838,-4259.37,0.00023013,2]
[368148088,1751038266848,-560.02,0.00023013,2]
[368148089,1751038266858,-460.0,0.00023013,2]
[368148090,1751038266868,-460.0,0.00023013,2]
[368148091,1751038266878,-1041.06,0.00023013,2]
[368148092,1751038266887,-460.0,0.00023013,2]
[368148093,1751038266897,-1937.51,0.00023013,2]
[368148094,1751038266907,-550.7,0.00023013,2]
[368148095,1751038266918,-3901.22,0.00023013,2]
[368148096,1751038266927,-1101.83,0.00023013,2]
[368148097,1751038266937,-930.7,0.00023013,2]
[368148098,1751038266947,-693.99,0.00023013,2]
[368148099,1751038266957,-545.86,0.00023013,2]
[368148100,1751038266967,-460.0,0.00023013,2]
[368148101,1751038266976,-855.32,0.00023013,2]
[368148102,1751038266986,-713.89,0.00023013,2]
[368148103,1751038266996,-1500.0,0.00023068,2]
[368148104,1751038267005,-1800.0,0.00023068,2]
[368148105,1751038267014,-1500.0,0.00023068,2]
[368148106,1751038267024,-1500.0,0.00023068,2]
[368148107,1751038267034,-154.4173165,0.00023068,2]
[368148108,1751038267043,-1500.0,0.00023068,2]
[368148109,1751038267053,-1500.0,0.00023068,2]
[368148110,1751038267062,-1500.0,0.00023068,2]
[368148111,1751038267072,-150.0,0.00023073,2]
[368148112,1751038267084,-150.0,0.00023073,2]
[368148113,1751038267093,-151.0,0.00023073,7]
[368148114,1751038267103,-151.0,0.00023073,7]
[368148115,1751038267112,-151.0,0.00023073,7]
[368148116,1751038267122,-714.787094,0.00023073,7]
[368148117,1751038267133,-714.787094,0.00023073,7]
[368148118,1751038267142,-151.0,0.00023082,7]
[368148119,1751038267151,-500.0,0.00023082,2]
[368148120,1751038267162,-437.811769,0.00023082,7]
[368148121,1751038267172,-437.811769,0.00023082,7]
[368148122,1751038267181,-500.0,0.00023096,2]
[368148123,1751038267191,-15498.2,0.000231,7]
[368148124,1751038267201,-195505.71,0.000231,7]
[368148125,1751038267210,-150.0,0.00023123,2]
[368148126,1751038267221,-1000.0,0.00023124,2]
[368148127,1751038267233,-500.0,0.00023124,2]
[368148128,1751038267243,-500.0,0.00023138,2]
[368148129,1751038267253,-1500.0,0.0002314,2]
[368148130,1751038267262,-900.0,0.0002314,2]
[368148131,1751038267274,-330.56958791,0.00023144,2]
[368148132,1751038267285,-500.0,0.00023171,2]
[368148133,1751038267294,-900.0,0.00023181,2]
[368148134,1751038267304,-900.0,0.00023191,2]
[368148135,1751038267314,-18733.61698347,0.000232,2]
[368148136,1751038267323,-900.0,0.00023207,2]
[368148137,1751038267333,-428.381506,0.00023239,7]
[368148138,1751038267342,-428.381506,0.00023239,7]
[368148139,1751038267352,-300.611582,0.00023239,7]
[368148140,1751038267362,-1000.0,0.00023263,2]
[368148141,1751038267372,-1000.0,0.00023267,2]
[368148142,1751038267381,-151.0,0.00023287,7]
[368148143,1751038267390,-151.0,0.00023287,7]
[368148144,1751038267399,-460.0,0.00023287,2]
[368148145,1751038267409,-487.3,0.00023287,2]
[368148146,1751038267419,-627.13,0.00023287,2]
[368148147,1751038267429,-460.0,0.00023287,2]
[368148148,1751038267438,-493.07,0.00023287,2]
[368148149,1751038267448,-1636.33,0.00023287,2]
[368148150,1751038267457,-977.32,0.00023287,2]
[368148151,1751038267467,-5210.38,0.00023287,2]
[368148152,1751038267476,-524.72,0.00023287,2]
[368148153,1751038267485,-1615.3,0.00023287,2]
[368148154,1751038267495,-460.0,0.00023287,2]
[368148155,1751038267504,-821.81,0.00023287,2]
[368148156,1751038267583,-1051.43,0.00023287,2]
[368148157,1751038267593,-493.34,0.00023287,2]
[368148158,1751038267602,-5570.99,0.00023287,2]
[368148159,1751038267612,-900.0,0.00023287,2]
[368148160,1751038267622,-1168.98,0.00023287,2]
[368148161,1751038267632,-5551.03,0.00023287,2]
[368148162,1751038267642,-1027.11,0.00023287,2]
[368148163,1751038267651,-835.24,0.00023287,2]
[368148164,1751038267661,-460.0,0.00023287,2]
[368148165,1751038267671,-729.15,0.00023287,2]
[368148166,1751038267680,-460.0,0.00023287,2]
[368148167,1751038267691,-1628.16,0.00023287,2]
[368148168,1751038267700,-460.0,0.00023287,2]
[368148169,1751038267710,-648.14,0.00023287,2]
[368148170,1751038267720,-551.64,0.00023287,2]
[368148171,1751038267730,-3080.1,0.00023287,2]
[368148172,1751038267740,-3962.82,0.00023287,2]
[368148173,1751038267750,-482.95,0.00023287,2]
[368148174,1751038267760,-460.0,0.00023287,2]
[368148175,1751038267770,-460.0,0.00023287,2]
[368148176,1751038267779,-2701.86,0.00023287,2]
[368148177,1751038267789,-151.0,0.00023287,7]
[368148178,1751038267799,-460.0,0.00023287,2]
[368148179,1751038267809,-960.06,0.00023287,2]
[368148180,1751038267819,-460.0,0.00023287,2]
[368148181,1751038267831,-598.88,0.00023287,2]
[368148182,1751038267841,-460.0,0.00023287,2]
[368148183,1751038267851,-516.39,0.00023287,2]
[368148184,1751038267860,-1018.47,0.00023287,2]
[368148185,1751038267870,-1550.47,0.00023287,2]
[368148186,1751038267880,-389.82,0.00023287,2]
[368148187,1751038267890,-1531.61,0.00023287,2]
[368148188,1751038267900,-460.0,0.00023287,2]
[368148189,1751038267910,-1149.78,0.00023287,2]
[368148190,1751038267920,-1081.48,0.00023287,2]
[368148191,1751038267930,-584.17,0.00023287,2]
[368148192,1751038267939,-4259.37,0.00023287,2]
[368148193,1751038267948,-560.02,0.00023287,2]
[368148194,1751038267958,-460.0,0.00023287,2]
[368148195,1751038267968,-460.0,0.00023287,2]
[368148196,1751038267977,-1041.06,0.00023287,2]
[368148197,1751038267986,-460.0,0.00023287,2]
[368148198,1751038267997,-1937.51,0.00023287,2]
[368148199,1751038268006,-550.7,0.00023287,2]
[368148200,1751038268016,-3901.22,0.00023287,2]
[368148201,1751038268025,-1101.83,0.00023287,2]
[368148202,1751038268034,-930.7,0.00023287,2]
[368148203,1751038268044,-693.99,0.00023287,2]
[368148204,1751038268053,-545.86,0.00023287,2]
[368148205,1751038268063,-460.0,0.00023287,2]
[368148206,1751038268074,-855.32,0.00023287,2]
[368148207,1751038268088,-713.89,0.00023287,2]
[368148208,1751038268097,-151.0,0.00023288,2]
[368148209,1751038268106,-151.0,0.00023288,2]
[368148210,1751038268116,-546.13404743,0.0002329,4]
[368148211,1751038268134,-546.13404743,0.0002329,4]
[368148212,1751038268155,-546.13404743,0.0002329,4]
[368148213,1751038268173,-546.13404743,0.0002329,4]
[368148214,1751038268193,-546.13404743,0.0002329,4]
[368148215,1751038268213,-546.13404743,0.0002329,4]
[368148216,1751038268231,-546.13404743,0.0002329,4]
[368148217,1751038268250,-546.13404743,0.0002329,4]
[368148218,1751038268266,-546.13404743,0.0002329,4]
[368148219,1751038268282,-546.13404743,0.0002329,4]
[368148220,1751038268300,-546.13404743,0.0002329,4]
[368148221,1751038268319,-546.13404743,0.0002329,4]
[368148222,1751038268337,-546.13404743,0.0002329,4]
[368148223,1751038268351,-546.13404743,0.0002329,4]
[368148224,1751038268371,-546.13404743,0.0002329,4]
[368148225,1751038268386,-546.13404743,0.0002329,4]
[368148226,1751038268401,-546.13404743,0.0002329,4]
[368148227,1751038268416,-546.13404743,0.0002329,4]
[368148228,1751038268430,-546.13404743,0.0002329,4]
[368148229,1751038268445,-546.13,0.0002329,4]
[368148230,1751038268460,-1274.31277733,0.0002329,4]
[368148231,1751038268474,-1274.31277733,0.0002329,4]
[368148232,1751038268488,-1274.31277733,0.0002329,4]
[368148233,1751038268503,-1274.31277733,0.0002329,4]
[368148234,1751038268517,-1274.31277733,0.0002329,4]
[368148235,1751038268532,-1274.31277733,0.0002329,4]
[368148236,1751038268547,-1274.31277733,0.0002329,4]
[368148237,1751038268562,-1274.31277733,0.0002329,4]
[368148238,1751038268578,-1274.31277733,0.0002329,4]
[368148239,1751038268592,-1274.31277733,0.0002329,4]
[368148240,1751038268606,-1274.31277733,0.0002329,4]
[368148241,1751038268621,-1274.31277733,0.0002329,4]
[368148242,1751038268636,-1274.31277733,0.0002329,4]
[368148243,1751038268651,-1274.31277733,0.0002329,4]
[368148244,1751038268662,-1274.31277733,0.0002329,4]
[368148245,1751038268672,-1274.31277733,0.0002329,4]
[368148246,1751038268683,-1274.31277733,0.0002329,4]
[368148247,1751038268692,-1274.31277733,0.0002329,4]
[368148248,1751038268703,-1274.31277733,0.0002329,4]
[368148249,1751038268712,-1274.31,0.0002329,4]
[368148250,1751038268722,-150.0,0.0002329,4]
[368148251,1751038268732,-150.0,0.0002329,4]
[368148252,1751038268741,-150.0,0.0002329,4]
[368148253,1751038268751,-150.0,0.0002329,4]
[368148254,1751038268760,-150.0,0.0002329,4]
[368148255,1751038268770,-150.0,0.0002329,4]
[368148256,1751038268779,-150.0,0.0002329,4]
[368148257,1751038268788,-150.0,0.0002329,4]
[368148258,1751038268798,-150.0,0.0002329,4]
[368148259,1751038268808,-150.0,0.0002329,4]
[368148260,1751038268817,-150.0,0.0002329,4]
[368148261,1751038268828,-150.0,0.0002329,4]
[368148262,1751038268838,-150.0,0.0002329,4]
[368148263,1751038268849,-150.0,0.0002329,4]
[368148264,1751038268859,-150.0,0.0002329,4]
[368148265,1751038268868,-150.0,0.0002329,4]
[368148266,1751038268878,-150.0,0.0002329,4]
[368148267,1751038269092,-150.0,0.0002329,4]
[368148268,1751038269106,-150.0,0.0002329,4]
[368148269,1751038269116,-150.0,0.0002329,4]
[368148270,1751038269127,-350.0,0.0002329,4]
[368148271,1751038269136,-350.0,0.0002329,4]
[368148272,1751038269146,-350.0,0.0002329,4]
[368148273,1751038269157,-350.0,0.0002329,4]
[368148274,1751038269167,-350.0,0.0002329,4]
[368148275,1751038269177,-350.0,0.0002329,4]
[368148276,1751038269186,-350.0,0.0002329,4]
[368148277,1751038269195,-350.0,0.0002329,4]
[368148278,1751038269205,-350.0,0.0002329,4]
[368148279,1751038269214,-350.0,0.0002329,4]
[368148280,1751038269223,-350.0,0.0002329,4]
[368148281,1751038269233,-350.0,0.0002329,4]
[368148282,1751038269242,-350.0,0.0002329,4]
[368148283,1751038269252,-350.0,0.0002329,4]
[368148284,1751038269261,-350.0,0.0002329,4]
[368148285,1751038269270,-350.0,0.0002329,4]
[368148286,1751038269280,-350.0,0.0002329,4]
[368148287,1751038269289,-350.0,0.0002329,4]
[368148288,1751038269298,-350.0,0.0002329,4]
[368148289,1751038269307,-350.0,0.0002329,4]
[368148290,1751038269317,-298.10111853,0.0002329,4]
[368148291,1751038269327,-298.10111853,0.0002329,4]
[368148292,1751038269336,-298.10111853,0.0002329,4]
[368148293,1751038269345,-298.10111853,0.0002329,4]
[368148294,1751038269355,-298.10111853,0.0002329,4]
[368148295,1751038269365,-298.10111853,0.0002329,4]
[368148296,1751038269374,-298.10111853,0.0002329,4]
[368148297,1751038269383,-298.10111853,0.0002329,4]
[368148298,1751038269393,-298.10111853,0.0002329,4]
[368148299,1751038269403,-298.10111853,0.0002329,4]
[368148300,1751038269413,-298.10111853,0.0002329,4]
[368148301,1751038269423,-298.10111853,0.0002329,4]
[368148302,1751038269432,-298.10111853,0.0002329,4]
[368148303,1751038269442,-298.10111853,0.0002329,4]
[368148304,1751038269452,-298.10111853,0.0002329,4]
[368148305,1751038269462,-298.10111853,0.0002329,4]
[368148306,1751038269472,-298.10111853,0.0002329,4]
[368148307,1751038269481,-298.10111853,0.0002329,4]
[368148308,1751038269491,-298.10111853,0.0002329,4]
[368148309,1751038269501,-298.1,0.0002329,4]
[368148310,1751038269511,-695.56927658,0.0002329,4]
[368148311,1751038269520,-695.56927658,0.0002329,4]
[368148312,1751038269530,-695.56927658,0.0002329,4]
[368148313,1751038269540,-695.56927658,0.0002329,4]
[368148314,1751038269550,-695.56927658,0.0002329,4]
[368148315,1751038269559,-695.56927658,0.0002329,4]
[368148316,1751038269570,-695.56927658,0.0002329,4]
[368148317,1751038269581,-695.56927658,0.0002329,4]
[368148318,1751038269591,-695.56927658,0.0002329,4]
[368148319,1751038269600,-695.56927658,0.0002329,4]
[368148320,1751038269610,-695.56927658,0.0002329,4]
[368148321,1751038269619,-695.56927658,0.0002329,4]
[368148322,1751038269628,-695.56927658,0.0002329,4]
[368148323,1751038269637,-695.56927658,0.0002329,4]
[368148324,1751038269648,-695.56927658,0.0002329,4]
[368148325,1751038269657,-695.56927658,0.0002329,4]
[368148326,1751038269667,-695.56927658,0.0002329,4]
[368148327,1751038269676,-695.56927658,0.0002329,4]
[368148328,1751038269686,-695.56927658,0.0002329,4]
[368148329,1751038269695,-695.56,0.0002329,4]
[368148330,1751038269705,-900.0,0.00023299,2]
[368148331,1751038269715,-192.949382,0.000233,7]
[368148332,1751038269724,-196.311275,0.000233,7]
[368148333,1751038269733,-196.311275,0.000233,7]
[368148334,1751038269743,-296.1687221,0.00023315,2]
[368148335,1751038269752,-151.0,0.00023315,2]
[368148336,1751038269762,-1000.0,0.00023319,2]
[368148337,1751038269772,-900.0,0.00023338,2]
[368148338,1751038269782,-151.0,0.00023343,2]
[368148339,1751038269791,-500.0,0.00023343,2]
[368148340,1751038269801,-900.0,0.00023356,2]
[368148341,1751038269810,-3685.32774384,0.0002337,2]
[368148342,1751038269821,-154.61954722,0.0002337,2]
[368148343,1751038269831,-151.0,0.0002337,2]
[368148344,1751038269840,-151.0,0.0002337,2]
[368148345,1751038269850,-500.0,0.0002337,2]
[368148346,1751038269860,-151.0,0.0002337,2]
[368148347,1751038269870,-151.0,0.0002337,2]
[368148348,1751038269879,-151.0,0.0002337,2]
[368148349,1751038269889,-151.0,0.0002337,2]
[368148350,1751038269899,-151.31756435,0.0002337,2]
[368148351,1751038269908,-151.0,0.0002337,2]
[368148352,1751038269918,-217.90292315,0.0002337,2]
[368148353,1751038269928,-500.0,0.00023372,2]
[368148354,1751038269938,-5000.0,0.00023381,2]
[368148355,1751038269947,-151.0,0.00023397,2]
[368148356,1751038269956,-151.0,0.00023397,2]
[368148357,1751038269965,-512.36969052,0.00023397,2]
[368148358,1751038269974,-151.0,0.00023397,2]
[368148359,1751038269983,-151.0,0.00023397,2]
[368148360,1751038269993,-151.0,0.00023397,2]
[368148361,1751038270002,-151.0,0.00023397,2]
[368148362,1751038270011,-428.381506,0.00023417,7]
[368148363,1751038270020,-428.381506,0.00023417,7]
[368148364,1751038270030,-198.0,0.00023425,2]
[368148365,1751038270039,-198.0,0.00023425,2]
[368148366,1751038270048,-151.0,0.00023425,2]
[368148367,1751038270058,-151.0,0.00023425,2]
[368148368,1751038270068,-151.0,0.00023425,2]
[368148369,1751038270078,-500.0,0.00023444,2]
[368148370,1751038270091,-151.0,0.00023452,2]
[368148371,1751038270100,-151.0,0.00023452,2]
[368148372,1751038270109,-151.0,0.00023452,2]
[368148373,1751038270119,-1000.0,0.00023456,2]
[368148374,1751038270129,-198.0,0.0002348,2]
[368148375,1751038270138,-151.0,0.0002348,2]
[368148376,1751038270147,-500.0,0.00023495,2]
[368148377,1751038270157,-151.0,0.000235,7]
[368148378,1751038270166,-500.0,0.000235,2]
[368148379,1751038270175,-182.29925512,0.00023507,2]
[368148380,1751038270186,-1000.0,0.00023534,2]
[368148381,1751038270195,-500.0,0.00023551,2]
[368148382,1751038270205,-151.0,0.00023561,7]
[368148383,1751038270214,-460.0,0.00023561,2]
[368148384,1751038270224,-487.3,0.00023561,2]
[368148385,1751038270233,-151.0,0.00023561,7]
[368148386,1751038270242,-151.0,0.00023561,7]
[368148387,1751038270251,-151.310287,0.00023561,7]
[368148388,1751038270260,-151.0,0.00023561,7]
[368148389,1751038270270,-627.13,0.00023561,2]
[368148390,1751038270280,-460.0,0.00023561,2]
[368148391,1751038270289,-493.07,0.00023561,2]
[368148392,1751038270299,-151.0,0.00023561,7]
[368148393,1751038270308,-151.0,0.00023561,7]
[368148394,1751038270318,-151.0,0.00023561,7]
[368148395,1751038270330,-1636.33,0.00023561,2]
[368148396,1751038270340,-977.32,0.00023561,2]
[368148397,1751038270349,-151.0,0.00023561,7]
[368148398,1751038270359,-5210.38,0.00023561,2]
[368148399,1751038270368,-524.72,0.00023561,2]
[368148400,1751038270378,-1615.3,0.00023561,2]
[368148401,1751038270387,-460.0,0.00023561,2]
[368148402,1751038270397,-333.9512,0.00023561,7]
[368148403,1751038270406,-821.81,0.00023561,2]
[368148404,1751038270417,-333.9512,0.00023561,7]
[368148405,1751038270427,-1051.43,0.00023561,2]
[368148406,1751038270436,-493.34,0.00023561,2]
[368148407,1751038270446,-151.0,0.00023561,7]
[368148408,1751038270457,-5570.99,0.00023561,2]
[368148409,1751038270466,-1168.98,0.00023561,2]
[368148410,1751038270475,-5551.03,0.00023561,2]
[368148411,1751038270485,-1027.11,0.00023561,2]
[368148412,1751038270494,-835.24,0.00023561,2]
[368148413,1751038270503,-346.77974709,0.00023561,2]
[368148414,1751038270513,-729.15,0.00023561,2]
[368148415,1751038270522,-200.0,0.00023561,2]
[368148416,1751038270532,-200.0,0.00023561,2]
[368148417,1751038270541,-200.0,0.00023561,2]
[368148418,1751038270550,-200.0,0.00023561,2]
[368148419,1751038270559,-200.0,0.00023561,2]
[368148420,1751038270568,-200.0,0.00023561,2]
[368148421,1751038270579,-200.0,0.00023561,2]
[368148422,1751038270588,-200.0,0.00023561,2]
[368148423,1751038270597,-297.42413746,0.00023561,2]
[368148424,1751038270606,-460.0,0.00023561,2]
[368148425,1751038270616,-1628.16,0.00023561,2]
[368148426,1751038270624,-460.0,0.00023561,2]
[368148427,1751038270634,-648.14,0.00023561,2]
[368148428,1751038270644,-551.64,0.00023561,2]
[368148429,1751038270653,-3080.1,0.00023561,2]
[368148430,1751038270663,-3962.82,0.00023561,2]
[368148431,1751038270672,-2466.011452,0.00023561,7]
[368148432,1751038270682,-482.95,0.00023561,2]
[368148433,1751038270692,-460.0,0.00023561,2]
[368148434,1751038270702,-2466.011452,0.00023561,7]
[368148435,1751038270712,-460.0,0.00023561,2]
[368148436,1751038270722,-2701.86,0.00023561,2]
[368148437,1751038270732,-460.0,0.00023561,2]
[368148438,1751038270743,-960.06,0.00023561,2]
[368148439,1751038270753,-460.0,0.00023561,2]
[368148440,1751038270763,-598.88,0.00023561,2]
[368148441,1751038270772,-460.0,0.00023561,2]
[368148442,1751038270782,-516.39,0.00023561,2]
[368148443,1751038270791,-1018.47,0.00023561,2]
[368148444,1751038270801,-1550.47,0.00023561,2]
[368148445,1751038270810,-1531.61,0.00023561,2]
[368148446,1751038270820,-359.7693823,0.00023561,2]
[368148447,1751038270830,-1149.78,0.00023561,2]
[368148448,1751038270840,-1081.48,0.00023561,2]
[368148449,1751038270850,-584.17,0.00023561,2]
[368148450,1751038270860,-1704.340604,0.00023561,7]
[368148451,1751038270870,-4259.37,0.00023561,2]
[368148452,1751038270880,-437.811769,0.00023561,7]
[368148453,1751038270889,-1704.340604,0.00023561,7]
[368148454,1751038270898,-437.811769,0.00023561,7]
[368148455,1751038270907,-560.02,0.00023561,2]
[368148456,1751038270917,-287.84,0.00023561,2]
[368148457,1751038270927,-227.0,0.00023561,2]
[368148458,1751038270936,-1041.06,0.00023561,2]
[368148459,1751038270945,-460.0,0.00023561,2]
[368148460,1751038270955,-1937.51,0.00023561,2]
[368148461,1751038270964,-550.7,0.00023561,2]
[368148462,1751038270973,-3901.22,0.00023561,2]
[368148463,1751038270983,-1101.83,0.00023561,2]
[368148464,1751038270992,-930.7,0.00023561,2]
[368148465,1751038271001,-545.86,0.00023561,2]
[368148466,1751038271011,-693.99,0.00023561,2]
[368148467,1751038271023,-460.0,0.00023561,2]
[368148468,1751038271033,-855.32,0.00023561,2]
[368148469,1751038271043,-713.89,0.00023561,2]
[368148470,1751038271053,-306.0,0.000236,2]
[368148471,1751038271063,-2000.0,0.00023616,2]
[368148472,1751038271073,-2400.0,0.00023616,2]
[368148473,1751038271085,-2000.0,0.00023616,2]
[368148474,1751038271095,-2000.0,0.00023616,2]
[368148475,1751038271104,-2000.0,0.00023616,2]
[368148476,1751038271114,-2000.0,0.00023616,2]
[368148477,1751038271123,-2000.0,0.00023616,2]
[368148478,1751038271134,-1000.0,0.00023618,2]
[368148479,1751038271143,-250.0,0.00023621,2]
[368148480,1751038271153,-500.0,0.0002364,2]
[368148481,1751038271163,-177.4788171,0.00023664,2]
[368148482,1751038271173,-575.118961,0.00023664,2]
[368148483,1751038271183,-177.4788171,0.00023664,2]
[368148484,1751038271192,-159.2394861,0.00023664,2]
[368148485,1751038271201,-575.118961,0.00023664,2]
[368148486,1751038271211,-159.2394861,0.00023664,2]
[368148487,1751038271220,-177.4788171,0.00023664,2]
[368148488,1751038271229,-575.118961,0.00023664,2]
[368148489,1751038271238,-159.2394861,0.00023664,2]
[368148490,1751038271248,-177.4788171,0.00023664,2]
[368148491,1751038271257,-159.2394861,0.00023664,2]
[368148492,1751038271267,-250.0,0.00023671,2]
[368148493,1751038271277,-2000.0,0.00023688,2]
[368148494,1751038271286,-151.0,0.00023689,6]
[368148495,1751038271295,-500.0,0.000237,2]
[368148496,1751038271306,-500.0,0.00023728,2]
[368148497,1751038271315,-900.0,0.0002373,2]
[368148498,1751038271324,-180.380139,0.00023744,2]
[368148499,1751038271334,-1000.0,0.00023753,2]
[368148500,1751038271344,-150.0,0.00023775,2]
[368148501,1751038271353,-1073.802784,0.00023799,4]
[368148502,1751038271363,-249041.16461277,0.00023829,2]
[368148503,1751038271373,-151.0,0.00023829,7]
[368148504,1751038271382,-151.0,0.00023829,7]
[368148505,1751038271392,-714.787094,0.00023829,7]
[368148506,1751038271401,-714.787094,0.00023829,7]
[368148507,1751038271411,-151.0,0.00023829,7]
[368148508,1751038271421,-394.39,0.00023835,2]
[368148509,1751038271431,-487.3,0.00023835,2]
[368148510,1751038271441,-627.13,0.00023835,2]
[368148511,1751038271450,-460.0,0.00023835,2]
[368148512,1751038271460,-493.07,0.00023835,2]
[368148513,1751038271469,-1636.33,0.00023835,2]
[368148514,1751038271479,-977.32,0.00023835,2]
[368148515,1751038271488,-5210.38,0.00023835,2]
[368148516,1751038271497,-524.72,0.00023835,2]
[368148517,1751038271507,-1615.3,0.00023835,2]
[368148518,1751038271517,-460.0,0.00023835,2]
[368148519,1751038271527,-821.81,0.00023835,2]
[368148520,1751038271537,-1051.43,0.00023835,2]
[368148521,1751038271546,-493.34,0.00023835,2]
[368148522,1751038271556,-5570.99,0.00023835,2]
[368148523,1751038271565,-1168.98,0.00023835,2]
[368148524,1751038271576,-5551.03,0.00023835,2]
[368148525,1751038271586,-1027.11,0.00023835,2]
[368148526,1751038271596,-835.24,0.00023835,2]